bitfinex/quotes_BTCUSD_20251230
["timestamp","ask_amount","ask_price","bid_price","bid_amount"]
[1767108578909,0.00057224,88491.0,88485.0,0.7038]
[1767108579128,0.00057224,88491.0,88483.0,0.7038]
[1767108582342,0.00057224,88491.0,88471.0,0.01130313]
[1767108582343,0.72055,88490.0,88471.0,0.01130313]
[1767108582573,0.000549,88483.0,88471.0,0.01130313]
[1767108582777,0.72055,88490.0,88473.0,0.7152]
[1767108583035,0.72055,88490.0,88474.0,0.7038]
[1767108583436,0.00057224,88491.0,88475.0,0.7038]
[1767108583642,0.00057224,88491.0,88476.0,0.0113025]
[1767108583915,0.00057224,88491.0,88477.0,0.01130237]
[1767108584139,0.00057224,88491.0,88476.0,0.7151025]
[1767108584702,0.00057224,88491.0,88476.0,0.7038]
[1767108586323,0.73632,88490.0,88473.0,0.0114]
[1767108586524,0.73632,88490.0,88470.0,0.74239]
[1767108586743,0.73632,88490.0,88473.0,0.01130288]
[1767108587049,0.00057224,88491.0,88476.0,0.74239]
[1767108587050,0.0114,88489.0,88476.0,0.74239]
[1767108587226,0.0114,88489.0,88478.0,0.74239]
[1767108587426,0.0114,88488.0,88478.0,0.74239]
[1767108587610,0.00057224,88491.0,88481.0,0.74239]
[1767108587611,0.0114,88490.0,88481.0,0.74239]
[1767108589074,0.0114,88490.0,88481.0,0.75369186]
[1767108589281,0.01197224,88491.0,88481.0,0.75369186]
[1767108589461,0.01197224,88491.0,88481.0,0.74239]
[1767108590518,0.00057224,88491.0,88485.0,0.01130135]
[1767108590708,2.24e-06,88491.0,88489.0,0.74239]
[1767108590891,0.05477726,88511.0,88490.0,0.74239]
[1767108591102,0.0114,88510.0,88490.0,0.74249694]
[1767108591281,0.00044206,88490.0,88477.0,0.01130237]
[1767108591463,0.73632,88493.0,88475.0,0.75369262]
[1767108591663,0.73642684,88493.0,88475.0,0.74239]
[1767108592453,0.73642684,88493.0,88475.0,0.75369262]
[1767108592657,0.73642684,88493.0,88476.0,0.0113025]
[1767108592960,0.73642684,88493.0,88475.0,0.75369262]
[1767108593201,0.73642684,88493.0,88476.0,0.0113025]
[1767108593395,0.73642684,88493.0,88475.0,0.75369262]
[1767108593602,0.0114,88492.0,88477.0,0.75369237]
[1767108593827,0.0114,88492.0,88476.0,0.0113025]
[1767108594051,0.0114,88492.0,88477.0,0.74239]
[1767108594254,0.0114,88491.0,88479.0,0.05651006]
[1767108594564,0.00010684,88493.0,88484.0,0.05650739]
[1767108594782,0.0114,88500.0,88492.0,0.74239]
[1767108594997,0.0114,88502.0,88492.0,0.74239]
[1767108595421,0.0114,88502.0,88468.0,0.01130352]
[1767108595422,0.73632,88491.0,88468.0,0.01130352]
[1767108595664,0.74772,88490.0,88471.0,0.74239]
[1767108595867,0.03046329,88504.0,88474.0,0.74239]
[1767108595868,0.0114,88489.0,88474.0,0.74239]
[1767108596004,0.0114,88489.0,88477.0,0.74239]
[1767108596204,0.0114,88489.0,88481.0,0.01130186]
[1767108596615,0.76067051,88499.0,88482.0,0.01130173]
[1767108596824,0.02435051,88498.0,88483.0,0.74239]
[1767108597038,0.0114,88497.0,88483.0,0.74239]
[1767108597238,0.03046329,88503.0,88488.0,0.74239]
[1767108597239,0.03046329,88502.0,88488.0,0.74239]
[1767108597445,0.02435051,88503.0,88488.0,0.74239]
[1767108597446,0.0114,88501.0,88490.0,0.74239]
[1767108597643,0.0114,88500.0,88490.0,0.75369071]
[1767108597849,0.0114,88500.0,88491.0,0.74239]
[1767108598056,0.0114,88499.0,88491.0,0.74239]
[1767108598278,0.0114,88502.0,88491.0,0.74239]
[1767108598478,0.0114,88502.0,88490.0,0.01130071]
[1767108598679,0.0114,88502.0,88489.0,0.01130083]
[1767108599286,0.0114,88502.0,88491.0,0.01130058]
[1767108599490,0.0114,88502.0,88489.0,0.79350457]
[1767108599696,0.0114,88502.0,88491.0,0.01130058]
[1767108599896,0.0114,88502.0,88490.0,0.73700071]
[1767108600098,0.0114,88502.0,88491.0,0.01130058]
[1767108600303,0.7357,88501.0,88486.0,0.01130122]
[1767108600559,0.000549,88491.0,88487.0,0.01130109]
[1767108600827,0.02441503,88500.0,88487.0,0.73700109]
[1767108600950,0.0114,88502.0,88487.0,0.73695794]
[1767108601156,0.0114,88502.0,88487.0,0.72565685]
[1767108601789,0.0114,88501.0,88493.0,0.05650123]
[1767108602012,0.03066329,88518.0,88503.0,0.7257]
[1767108602188,0.03066329,88518.0,88504.0,0.73699892]
[1767108602189,0.0114,88517.0,88504.0,0.73699892]
[1767108602389,0.0114,88517.0,88505.0,0.7257]
[1767108602599,0.0114,88517.0,88504.0,0.7257]
[1767108603167,0.7471,88517.0,88502.0,0.01129917]
[1767108603351,0.0114,88517.0,88502.0,0.7257]
[1767108603563,0.0114,88517.0,88504.0,0.01129892]
[1767108603976,0.0114,88517.0,88504.0,0.7257]
[1767108604182,0.0114,88517.0,88506.0,0.7257]
[1767108604615,0.7471,88517.0,88499.0,0.73699956]
[1767108604830,0.7471,88517.0,88501.0,0.7257]
[1767108605064,0.0002,88518.0,88506.0,0.73699866]
[1767108605265,0.0004667,88521.0,88517.0,0.726249]
[1767108605472,0.0114,88524.0,88517.0,0.726249]
[1767108605690,0.0114,88528.0,88517.0,0.7257]
[1767108606450,0.0114,88528.0,88517.0,0.72565656]
[1767108606859,0.0114,88528.0,88511.0,0.7257]
[1767108606860,0.00055,88517.0,88511.0,0.7257]
[1767108607090,0.00055,88517.0,88514.0,0.01129764]
[1767108607301,0.00055,88517.0,88513.0,0.72565905]
[1767108607464,0.7471,88528.0,88513.0,0.72565905]
[1767108607658,0.7471,88528.0,88511.0,0.0001069]
[1767108607861,0.7471,88528.0,88497.0,0.0677986]
[1767108607862,0.7471,88528.0,88497.0,0.74839981]
[1767108608066,0.7357,88526.0,88497.0,0.74839981]
[1767108608332,0.01150686,88528.0,88497.0,0.0114]
[1767108608333,0.02433341,88525.0,88497.0,0.0114]
[1767108608485,0.7357,88507.0,88491.0,0.7257]
[1767108608688,0.7471,88507.0,88484.0,0.7257]
[1767108608886,0.7471,88507.0,88486.0,0.01130122]
[1767108609101,0.7471,88507.0,88484.0,0.74840147]
[1767108609300,0.7471,88507.0,88488.0,0.01130096]
[1767108609522,0.7471,88507.0,88487.0,0.01130109]
[1767108609923,0.7471,88507.0,88489.0,0.01130083]
[1767108610098,0.7357,88507.0,88493.0,0.01130032]
[1767108610300,0.7357,88507.0,88490.0,0.01130071]
[1767108610301,0.7357,88505.0,88492.0,0.01130045]
[1767108610513,0.7357,88505.0,88493.0,0.01130032]
[1767108611162,0.7357,88524.0,88492.0,0.01130045]
[1767108611363,0.00010686,88528.0,88492.0,0.01130045]
[1767108611364,0.7809,88515.0,88492.0,0.73700045]
[1767108611507,0.7357,88513.0,88492.0,0.73700045]
[1767108611708,0.7357,88513.0,88492.0,0.7257]
[1767108612505,0.00055,88492.0,88484.0,0.0114]
[1767108612705,0.00055,88492.0,88475.0,0.7257]
[1767108612706,0.7357,88491.0,88475.0,0.7257]
[1767108612945,0.7357,88491.0,88471.0,0.01130313]
[1767108613166,0.7357,88491.0,88473.0,0.01125956]
[1767108613352,0.7357,88491.0,88472.0,0.01130301]
[1767108613737,0.7357,88491.0,88472.0,0.00010684]
[1767108613939,0.7357,88491.0,88475.0,0.7257]
[1767108614139,0.7471,88496.0,88475.0,0.7257]
[1767108614347,0.7471,88496.0,88477.0,0.01130237]
[1767108614675,0.0114,88495.0,88476.0,0.7370025]
[1767108615164,0.0114,88495.0,88476.0,0.7257]
[1767108615370,0.0114,88495.0,88478.0,0.73700224]
[1767108615579,0.04049402,88519.0,88472.0,0.22616638]
[1767108615580,0.7357,88517.0,88487.0,0.73700109]
[1767108615732,0.0607787,88528.0,88487.0,0.73700109]
[1767108615733,0.7357,88507.0,88487.0,0.7257]
[1767108615967,0.7471,88506.0,88487.0,0.7257]
[1767108616145,0.7357,88506.0,88487.0,0.7257]
[1767108616352,0.00055,88487.0,88478.0,0.73502]
[1767108616566,0.00055,88487.0,88477.0,0.02270237]
[1767108616784,0.69864,88490.0,88478.0,0.01130224]
[1767108616990,0.69864,88490.0,88477.0,0.02270237]
[1767108617404,0.69864,88490.0,88479.0,0.01130211]
[1767108617585,0.69864,88490.0,88478.0,0.01130224]
[1767108618486,0.0114,88494.0,88478.0,0.01130224]
[1767108618906,0.0114,88494.0,88477.0,0.75772237]
[1767108619107,0.0114,88494.0,88479.0,0.01130211]
[1767108619271,0.0114,88494.0,88477.0,0.75772237]
[1767108619471,0.69864,88493.0,88477.0,0.0114]
[1767108619704,0.69864,88493.0,88474.0,0.01130275]
[1767108619911,0.69864,88493.0,88475.0,0.01130262]
[1767108620308,0.69864,88493.0,88476.0,0.0113025]
[1767108620503,0.69864,88493.0,88475.0,0.01130262]
[1767108620711,0.69864,88493.0,88476.0,0.0113025]
[1767108621738,0.69864,88493.0,88472.0,0.73512684]
[1767108621899,0.69864,88493.0,88472.0,0.74642985]
[1767108622106,0.00044316,88472.0,88460.0,0.74632454]
[1767108622405,0.00044316,88472.0,88463.0,0.73502]
[1767108622596,0.69864,88477.0,88461.0,0.00093566]
[1767108622802,0.69864,88477.0,88461.0,0.00061966]
[1767108623631,0.69864,88477.0,88461.0,0.00013524]
[1767108623765,0.69864,88477.0,88446.0,0.0004]
[1767108623966,0.69899616,88477.0,88446.0,0.0004]
[1767108624168,0.69899616,88477.0,88447.0,0.0113062]
[1767108624376,0.69899616,88477.0,88452.0,0.74632556]
[1767108624582,0.71004,88476.0,88454.0,0.73502]
[1767108624796,0.71004,88476.0,88450.0,0.01130582]
[1767108624797,0.71004,88476.0,88453.0,0.73502]
[1767108624997,0.71004,88476.0,88446.0,0.0004]
[1767108625206,0.69864,88476.0,88448.0,0.01130607]
[1767108625419,0.75528,88475.0,88452.0,0.74632556]
[1767108625624,0.69864,88473.0,88453.0,0.74632543]
[1767108626030,0.69864,88473.0,88455.0,0.01130518]
[1767108626232,0.69864,88473.0,88456.0,0.01130505]
[1767108626430,0.69864,88473.0,88458.0,0.0113048]
[1767108626651,0.0114,88472.0,88461.0,0.01130441]
[1767108626857,0.0114,88472.0,88459.0,0.01130467]
[1767108626858,0.0114,88472.0,88460.0,0.01130454]
[1767108627066,0.0114,88472.0,88457.0,0.01130492]
[1767108627067,0.0114,88472.0,88457.0,0.73502]
[1767108627277,0.0114,88472.0,88458.0,0.0113048]
[1767108627496,0.0114,88472.0,88459.0,0.01130467]
[1767108627946,0.0114,88472.0,88458.0,0.0113048]
[1767108628154,0.0114,88472.0,88457.0,0.74632492]
[1767108628352,0.0114,88472.0,88459.0,0.01130467]
[1767108628572,0.0114,88472.0,88460.0,0.01130454]
[1767108628779,0.0114,88472.0,88459.0,0.01130467]
[1767108628986,0.00035616,88477.0,88466.0,0.74632377]
[1767108629192,0.0114,88476.0,88467.0,0.73502]
[1767108629405,0.010851,88476.0,88472.0,0.01130301]
[1767108629613,0.0114,88482.0,88473.0,0.73502]
[1767108629814,0.0114,88482.0,88473.0,0.74632288]
[1767108630075,0.0114,88482.0,88473.0,0.73502]
[1767108631377,0.0114,88484.0,88473.0,0.73502]
[1767108632002,0.0114,88484.0,88473.0,0.74632288]
[1767108632541,0.0114,88484.0,88474.0,0.01130275]
[1767108632749,0.69864,88499.0,88478.0,0.73502]
[1767108632971,0.69864,88497.0,88478.0,0.80283312]
[1767108633176,0.00010686,88499.0,88478.0,0.80283312]
[1767108633177,0.69864,88495.0,88478.0,0.73502]
[1767108633620,0.69864,88495.0,88466.0,0.73502]
[1767108633817,0.69864,88495.0,88466.0,0.0114]
[1767108635951,0.69864,88495.0,88457.0,0.73502]
[1767108636311,0.69864,88493.0,88457.0,0.73502]
[1767108636514,0.69864,88491.0,88450.0,0.0114]
[1767108636715,0.69864,88489.0,88450.0,0.0114]
[1767108636967,0.69864,88487.0,88447.0,0.73502]
[1767108637103,0.69864,88485.0,88446.0,0.0004]
[1767108637300,0.69864,88483.0,88446.0,0.0004]
[1767108637512,0.69864,88481.0,88446.0,0.0004]
[1767108637734,0.69864,88479.0,88446.0,0.0004]
[1767108638013,0.69864,88477.0,88447.0,0.73502]
[1767108638211,0.69864,88475.0,88450.0,0.74632582]
[1767108638421,0.71004,88474.0,88454.0,0.73502]
[1767108638875,0.71004,88474.0,88455.0,0.01130518]
[1767108639340,0.71004,88474.0,88454.0,0.74632531]
[1767108639507,0.71004,88474.0,88454.0,0.73502]
[1767108641332,0.0114,88473.0,88462.0,0.73502]
[1767108643246,0.0114,88478.0,88465.0,0.73502]
[1767108644283,0.0114,88478.0,88368.0,0.32411002]
[1767108644284,0.69864,88477.0,88458.0,0.73502]
[1767108644684,0.69864,88477.0,88458.0,0.80284835]
[1767108644886,0.69864,88477.0,88461.0,0.01130441]
[1767108645109,0.69864,88477.0,88462.0,0.01130428]
[1767108645322,0.69864,88477.0,88463.0,0.01130416]
[1767108645747,0.69864,88477.0,88457.0,0.02270492]
[1767108645949,0.69864,88477.0,88458.0,0.0113048]
[1767108646219,0.69864,88477.0,88457.0,0.0114]
[1767108646426,0.69864,88477.0,88461.0,0.06782585]
[1767108646604,0.69864,88477.0,88462.0,0.74582428]
[1767108646810,0.71824,88483.0,88465.0,0.73452]
[1767108647081,0.0114,88482.0,88469.0,0.73452]
[1767108647322,0.0114,88481.0,88469.0,0.73452]
[1767108647685,0.71824,88489.0,88470.0,0.01130326]
[1767108647892,0.0114,88488.0,88476.0,0.73452]
[1767108648093,0.0114,88490.0,88479.0,0.74582211]
[1767108648295,0.0114,88490.0,88479.0,0.73452]
[1767108649635,0.0114,88490.0,88481.0,0.73452]
[1767108650849,0.0114,88490.0,88483.0,0.73452]
[1767108651036,0.00010686,88499.0,88490.0,0.05650355]
[1767108651355,0.0114,88504.0,88495.0,0.73452]
[1767108651695,0.0114,88504.0,88499.0,0.01129956]
[1767108651899,0.0114,88508.0,88500.0,0.01129943]
[1767108652181,0.0114,88508.0,88500.0,0.73452]
[1767108652360,0.0114,88508.0,88501.0,0.0112993]
[1767108652542,0.71824,88523.0,88506.0,0.74581866]
[1767108652744,0.71824,88523.0,88509.0,0.01129828]
[1767108652905,0.0114,88519.0,88511.0,0.01129803]
[1767108653107,0.0114,88519.0,88509.0,0.01129828]
[1767108653337,0.0114,88519.0,88508.0,0.73452]
[1767108653533,0.0114,88519.0,88509.0,0.01129828]
[1767108654404,0.0114,88519.0,88508.0,0.74581841]
[1767108655906,0.0114,88519.0,88513.0,0.01129777]
[1767108656056,0.71824,88529.0,88513.0,0.73452]
[1767108656057,0.0114,88521.0,88513.0,0.73452]
[1767108656612,0.0114,88521.0,88506.0,0.01129866]
[1767108656788,0.0114,88521.0,88509.0,0.01129828]
[1767108657104,0.0114,88521.0,88508.0,0.74581841]
[1767108657311,0.0114,88521.0,88510.0,0.73452]
[1767108657520,0.0114,88521.0,88510.0,0.74581815]
[1767108658098,0.0114,88521.0,88511.0,0.01129803]
[1767108658468,0.0114,88525.0,88511.0,0.01129803]
[1767108658678,0.0114,88525.0,88512.0,0.73452]
[1767108658905,0.0114,88525.0,88512.0,0.7458179]
[1767108659530,0.0114,88525.0,88512.0,0.73452]
[1767108659734,0.0114,88525.0,88512.0,0.7458179]
[1767108659940,0.72964,88525.0,88508.0,0.0114]
[1767108660384,0.71824,88519.0,88499.0,0.74592642]
[1767108660611,0.000549,88508.0,88501.0,0.0112993]
[1767108660759,0.71824,88519.0,88500.0,0.0114]
[1767108660760,0.71824,88519.0,88500.0,0.01129943]
[1767108660966,0.71824,88519.0,88502.0,0.0114]
[1767108661221,0.71824,88519.0,88503.0,0.01129905]
[1767108661394,0.71824,88519.0,88502.0,0.02269917]
[1767108661865,0.71824,88519.0,88503.0,0.0114]
[1767108662064,0.71824,88519.0,88502.0,0.01129917]
[1767108662276,0.71824,88519.0,88503.0,0.0114]
[1767108662865,0.71824,88519.0,88501.0,0.0112993]
[1767108663065,0.0114,88525.0,88516.0,0.70095]
[1767108663066,4e-07,88520.0,88516.0,0.70095]
[1767108663263,4e-07,88520.0,88519.0,0.70095]
[1767108664087,0.0114,88533.0,88526.0,0.70095]
[1767108664412,0.0114,88533.0,88524.0,0.01129637]
[1767108664614,0.0114,88533.0,88523.0,0.01129649]
[1767108664817,0.0114,88533.0,88521.0,0.0564833]
[1767108664818,0.0114,88533.0,88521.0,0.71224675]
[1767108664964,0.0114,88533.0,88523.0,0.01129649]
[1767108665190,0.0114,88533.0,88522.0,0.01129662]
[1767108665191,0.0115069,88533.0,88522.0,0.70095]
[1767108665594,0.0115069,88533.0,88523.0,0.05648249]
[1767108665798,0.0115069,88533.0,88529.0,0.70095]
[1767108665799,0.0001069,88533.0,88529.0,0.70095]
[1767108665996,0.0004004,88544.0,88536.0,0.70095]
[1767108666213,0.0004004,88544.0,88538.0,0.70095]
[1767108666214,4e-07,88544.0,88538.0,0.70095]
[1767108666448,4e-07,88544.0,88536.0,0.70095]
[1767108666607,4e-07,88544.0,88537.0,0.01129471]
[1767108667025,4e-07,88544.0,88536.0,0.70095]
[1767108667230,4e-07,88544.0,88536.0,0.71224484]
[1767108667433,4e-07,88544.0,88539.0,0.71224445]
[1767108667638,4e-07,88544.0,88543.0,0.75741973]
[1767108668066,0.00023871,88560.0,88556.0,0.01129228]
[1767108668226,0.00023871,88560.0,88549.0,0.70095]
[1767108668227,0.00023871,88560.0,88551.0,0.70095]
[1767108668426,0.00023871,88560.0,88549.0,0.0114]
[1767108668427,1e-08,88560.0,88557.0,0.71224216]
[1767108668621,1e-08,88560.0,88558.0,0.75740988]
[1767108669074,1e-08,88560.0,88558.0,0.05645988]
[1767108669859,1e-08,88560.0,88558.0,0.75740988]
[1767108670542,1e-08,88560.0,88549.0,0.70095]
[1767108670837,1e-08,88560.0,88547.0,0.01129343]
[1767108670838,0.00055,88558.0,88551.0,0.01129292]
[1767108671043,1e-08,88560.0,88554.0,0.01129254]
[1767108671266,1e-08,88560.0,88552.0,0.01129279]
[1767108671467,1e-08,88560.0,88553.0,0.01129267]
[1767108671812,1e-08,88560.0,88555.0,0.06775408]
[1767108672009,1e-08,88560.0,88555.0,0.01129241]
[1767108672347,1e-08,88560.0,88554.0,0.01129254]
[1767108672713,1e-08,88560.0,88555.0,0.02269241]
[1767108673130,1e-08,88560.0,88556.0,0.01129228]
[1767108673332,1e-08,88560.0,88555.0,0.0114]
[1767108673738,1e-08,88560.0,88557.0,0.01129216]
[1767108673970,1e-08,88560.0,88558.0,0.75741017]
[1767108674540,0.0002,88604.0,88574.0,0.01128999]
[1767108674541,0.70314,88587.0,88574.0,0.01128999]
[1767108674770,0.0002,88604.0,88584.0,0.70095]
[1767108674962,0.0002,88604.0,88586.0,0.70095]
[1767108675169,0.70314,88601.0,88592.0,0.0116367]
[1767108675368,0.0002,88604.0,88592.0,0.0116367]
[1767108675597,0.0002,88604.0,88589.0,0.01128808]
[1767108676157,0.0002,88604.0,88593.0,0.76004786]
[1767108676447,0.0002,88604.0,88587.0,0.01128833]
[1767108676448,0.00147686,88611.0,88609.0,0.70361]
[1767108676658,0.00147686,88611.0,88601.0,0.01128655]
[1767108676659,0.000101,88609.0,88594.0,0.71489744]
[1767108676824,0.0007511,88610.0,88601.0,0.70361]
[1767108677147,0.72004,88620.0,88601.0,0.70361]
[1767108677384,0.72004,88620.0,88601.0,0.71489655]
[1767108677563,0.72004,88620.0,88598.0,0.02268693]
[1767108677801,0.0114,88621.0,88605.0,0.71489604]
[1767108678051,0.0114,88621.0,88611.0,0.71489528]
[1767108678267,0.0002,88622.0,88616.0,0.01128464]
[1767108678509,0.000449,88616.0,88610.0,0.7148954]
[1767108678722,0.0002,88622.0,88611.0,0.01128528]
[1767108678966,0.0002,88622.0,88612.0,0.71489515]
[1767108679189,0.0002,88622.0,88618.0,0.01128438]
[1767108679407,0.0114,88631.0,88621.0,0.06770378]
[1767108679632,0.0114,88631.0,88625.0,0.06770062]
[1767108679864,0.72004,88644.0,88628.0,0.01128311]
[1767108679865,0.0114,88640.0,88628.0,0.01128311]
[1767108680323,0.0114,88640.0,88635.0,0.01128222]
[1767108680536,0.0114,88647.0,88640.0,0.00035]
[1767108680763,0.0114,88647.0,88629.0,0.70361]
[1767108680982,0.72004,88667.0,88648.0,0.01128057]
[1767108681216,0.0452,88679.0,88641.0,0.0114]
[1767108681217,0.000749,88648.0,88641.0,0.0114]
[1767108681413,0.72004,88648.0,88632.0,0.0112826]
[1767108681577,0.72004,88648.0,88626.0,0.70361]
[1767108681578,0.72004,88648.0,88629.0,0.0114]
[1767108682150,0.72004,88648.0,88629.0,0.011201]
[1767108682351,0.72004,88648.0,88629.0,0.02248398]
[1767108682547,0.0114,88650.0,88629.0,0.02248398]
[1767108682548,0.0114,88650.0,88635.0,0.06769334]
[1767108682802,0.0008408,88636.0,88635.0,0.70361]
[1767108682959,0.0114,88650.0,88635.0,0.70361]
[1767108683161,0.0114,88650.0,88635.0,0.70306]
[1767108683362,0.73144,88650.0,88628.0,0.70361]
[1767108683561,0.73144,88650.0,88628.0,0.71501]
[1767108683908,0.73144,88650.0,88621.0,0.70361]
[1767108684213,0.73144,88650.0,88611.0,0.70361]
[1767108684758,0.73144,88650.0,88611.0,0.71489528]
[1767108685359,0.73144,88650.0,88613.0,0.01128502]
[1767108685583,0.73144,88650.0,88611.0,0.70361]
[1767108685789,0.74144,88650.0,88612.0,0.01128515]
[1767108685960,0.74144,88650.0,88613.0,0.01128502]
[1767108686160,0.74179691,88650.0,88614.0,0.01128489]
[1767108686562,0.74179691,88650.0,88613.0,0.71489502]
[1767108686767,0.74179691,88650.0,88614.0,0.01128489]
[1767108687451,0.74179691,88650.0,88613.0,0.71489502]
[1767108688391,0.74179691,88650.0,88613.0,0.70361]
[1767108688624,0.74179691,88650.0,88585.0,0.08590016]
[1767108688625,0.74179691,88650.0,88594.0,0.70361]
[1767108688879,0.74179691,88650.0,88597.0,0.70361]
[1767108689078,0.74179691,88650.0,88590.0,0.70361]
[1767108689079,0.72004,88648.0,88590.0,0.70361]
[1767108689270,0.72004,88646.0,88590.0,0.71489795]
[1767108689445,0.02175691,88650.0,88590.0,0.71489795]
[1767108689446,0.72004,88644.0,88593.0,0.01128757]
[1767108689596,0.72004,88644.0,88584.0,0.23713291]
[1767108689597,0.72004,88615.0,88596.0,0.0002]
[1767108689796,0.0002,88616.0,88596.0,0.0002]
[1767108689797,0.72004,88613.0,88596.0,0.0002]
[1767108689998,0.05652,88614.0,88596.0,0.70381]
[1767108690627,0.77656,88614.0,88596.0,0.70381]
[1767108690902,0.77691669,88614.0,88596.0,0.70381]
[1767108691026,0.77691669,88614.0,88597.0,0.01128706]
[1767108691232,0.05687669,88614.0,88597.0,0.70361]
[1767108691457,0.03713045,88614.0,88603.0,0.71489629]
[1767108691668,0.03713045,88614.0,88606.0,0.71489591]
[1767108691868,0.03713045,88614.0,88607.0,0.01128579]
[1767108692906,0.03713045,88614.0,88602.0,0.06771836]
[1767108692907,0.04516,88631.0,88621.0,0.011284]
[1767108693046,0.01136,88630.0,88621.0,0.011284]
[1767108693247,0.01136,88630.0,88617.0,0.01128451]
[1767108693459,0.01136,88630.0,88616.0,0.70361]
[1767108693875,0.01136,88630.0,88612.0,0.0002]
[1767108693876,0.000549,88616.0,88612.0,0.0002]
[1767108694094,0.000549,88616.0,88613.0,0.70361]
[1767108694288,0.00055,88613.0,88612.0,0.0002]
[1767108694923,0.01136,88616.0,88612.0,0.0002]
[1767108694924,0.7314,88616.0,88612.0,0.0002]
[1767108695160,0.7314,88616.0,88597.0,0.70361]
[1767108695161,0.7314,88616.0,88597.0,0.71489706]
[1767108695303,0.7314,88616.0,88599.0,0.0112868]
[1767108695503,0.7314,88616.0,88598.0,0.01128693]
[1767108695704,0.7314,88616.0,88599.0,0.0112868]
[1767108696103,0.7314,88616.0,88598.0,0.71489693]
[1767108696572,0.7314,88616.0,88598.0,0.70361]
[1767108696779,0.7314,88616.0,88596.0,0.0002]
[1767108696978,0.77656,88616.0,88596.0,0.0002]
[1767108697732,0.77656,88616.0,88583.0,0.01128884]
[1767108697932,0.77656,88616.0,88584.0,0.01128872]
[1767108698173,0.72004,88605.0,88586.0,0.0002]
[1767108698333,0.01136,88604.0,88586.0,0.0002]
[1767108698532,0.01136,88604.0,88587.0,0.70361]
[1767108698782,0.72004,88603.0,88586.0,0.0002]
[1767108699164,0.72004,88603.0,88581.0,0.0004118]
[1767108699367,0.72004,88603.0,88581.0,0.0117009]
[1767108699568,0.72014689,88603.0,88581.0,0.0004118]
[1767108701276,0.72004,88601.0,88581.0,0.0002628]
[1767108701506,0.72004,88590.0,88571.0,0.0002]
[1767108701704,0.72004,88588.0,88571.0,0.0002]
[1767108703365,0.72004,88588.0,88571.0,0.70381]
[1767108703503,0.05652,88589.0,88575.0,0.01128986]
[1767108703698,0.05652,88589.0,88579.0,0.70361]
[1767108703699,0.055971,88589.0,88579.0,0.70361]
[1767108703912,0.00055,88579.0,88571.0,0.0002]
[1767108704108,0.01136,88578.0,88571.0,0.0002]
[1767108707623,0.01136,88578.0,88563.0,0.70361]
[1767108707879,0.01136,88578.0,88564.0,0.01129126]
[1767108708895,0.01136,88578.0,88572.0,0.01129024]
[1767108709082,0.01116,88578.0,88572.0,0.01129024]
[1767108709292,0.73182,88587.0,88573.0,0.01129012]
[1767108709448,0.01136,88586.0,88580.0,0.69481]
[1767108709651,0.01136,88585.0,88580.0,0.69481]
[1767108710052,0.01136,88585.0,88575.0,0.0002]
[1767108710752,0.74318,88585.0,88575.0,0.0002]
[1767108711292,0.74318,88585.0,88563.0,0.01129139]
[1767108711794,0.74318,88585.0,88562.0,0.69481]
[1767108711954,0.74318,88585.0,88563.0,0.01129139]
[1767108712136,0.74318,88585.0,88566.0,0.01129101]
[1767108712642,0.74318,88585.0,88562.0,0.69481]
[1767108712643,0.732169,88566.0,88547.0,0.69481]
[1767108712847,0.74318,88565.0,88557.0,6e-07]
[1767108713907,0.74328681,88565.0,88557.0,6e-07]
[1767108715743,0.74328681,88565.0,88537.0,0.0002388]
[1767108716423,0.73192681,88565.0,88543.0,0.01129394]
[1767108716622,0.00010681,88565.0,88550.0,0.69481]
[1767108716802,0.05656,88564.0,88550.0,0.70610305]
[1767108717192,0.05656,88564.0,88551.0,0.01129292]
[1767108717414,0.05656,88564.0,88550.0,0.70610305]
[1767108717624,0.05656,88564.0,88551.0,0.01129292]
[1767108717842,0.00010681,88565.0,88564.0,0.000418]
[1767108718276,0.00010681,88565.0,88557.0,0.06775239]
[1767108718277,0.05666681,88565.0,88557.0,0.06775239]
[1767108718481,0.05666681,88565.0,88558.0,0.01129203]
[1767108719039,0.73049943,88574.0,88565.0,0.00031119]
[1767108719254,0.0566,88573.0,88565.0,0.00035669]
[1767108720292,0.72862,88580.0,88565.0,0.00035669]
[1767108720480,0.0452,88572.0,88565.0,6.9e-07]
[1767108720661,0.0114,88571.0,88565.0,6.9e-07]
[1767108720864,0.74002,88571.0,88555.0,0.0002]
[1767108721061,0.74002,88571.0,88541.0,0.69717]
[1767108721062,0.0002,88555.0,88541.0,0.69717]
[1767108721265,0.0114,88554.0,88541.0,0.69717]
[1767108721473,0.011283,88554.0,88544.0,0.01129382]
[1767108721774,0.011283,88554.0,88545.0,0.69717]
[1767108721932,0.0002,88564.0,88547.0,0.69717]
[1767108722135,0.0566,88563.0,88548.0,0.0112933]
[1767108722346,0.0566,88562.0,88552.0,0.69717]
[1767108722546,0.0566,88562.0,88552.0,0.70846279]
[1767108722763,0.0566,88562.0,88552.0,0.69717]
[1767108722966,0.0566,88562.0,88552.0,0.70846279]
[1767108723298,0.0566,88562.0,88552.0,0.69717]
[1767108723521,0.0566,88561.0,88548.0,0.69717]
[1767108723723,0.0566,88561.0,88550.0,0.69717]
[1767108723904,0.0566,88561.0,88557.0,0.69717]
[1767108724342,0.0002,88564.0,88557.0,0.69717]
[1767108724550,0.00035618,88571.0,88557.0,0.69717]
[1767108724551,0.0114,88563.0,88557.0,0.69717]
[1767108724766,0.05625,88563.0,88557.0,0.69717]
[1767108724947,0.05625,88563.0,88553.0,0.01129267]
[1767108725346,0.0566,88562.0,88558.0,0.70846203]
[1767108725587,0.0114,88561.0,88559.0,0.69717]
[1767108725807,0.00035618,88571.0,88559.0,0.7084619]
[1767108726038,0.0452,88572.0,88569.0,0.01129063]
[1767108726288,0.0452,88581.0,88575.0,0.01128986]
[1767108726519,0.77382,88594.0,88579.0,0.05644637]
[1767108726773,0.0114,88593.0,88579.0,0.01128935]
[1767108727028,0.0114,88593.0,88578.0,0.01128948]
[1767108727193,0.0114,88592.0,88582.0,0.01128897]